Cogmind - Beta 14 @@@ ROGUE MODE // 2024.08.13 @ 16:40:56 Player: star Result: Destroyed by as-03546 with Assembled Rifle Performance ------------- Evolutions (0) 0 Regions Visited (2) 400 Robots Destroyed (9) 45 Value Destroyed (215) 215 Prototype IDs (0) 0 Alien Tech Used (0) 0 Bonus (0) 0 TOTAL SCORE: 660 Bonus ------- None Cogmind --------- Core Integrity 0/250 Matter 300/300 Energy 99/100 System Corruption 0% Temperature Cool (0) Movement Core (50) Location -10/Mines Parts ------- > --- POWER (1) -------- (None) > --- PROPULSION (2) --- (None) > --- UTILITY (2) ------ (None) > --- WEAPON (2) ------- (None) > --- INVENTORY (5) ---- Wheel Large Storage Unit Transport Network Coupler Small Laser Grenade Launcher Peak State ------------ > --- POWER ------------ Light Ion Engine > --- PROPULSION ------- Wheel Wheel > --- UTILITY ---------- Improved Heat Sink Small Storage Unit > --- WEAPON ----------- Medium Laser Small Laser > --- INVENTORY -------- Small Laser Grenade Launcher [Rating: 9] Favorites ----------- Power Light Ion Engine Engine Light Ion Engine Propulsion Light Treads Treads Light Treads Wheel Wheel Utility Improved Heat Sink Device Improved Heat Sink Storage Large Storage Unit Weapon Medium Laser Energy Gun Medium Laser Ballistic Gun Light Assault Rifle Launcher Grenade Launcher Build | -11 -10 -10 ------- Run | Yrd Mat Min Slots Evolved . | . . . Power . | . . . Propulsion . | . . . Utility . | . . . Weapon . | . . . Parts Attached 14 | 6 6 2 Power 1 | 1 . . Engine 1 | 1 . . Core . | . . . Reactor . | . . . Propulsion 5 | 2 3 . Treads 3 | . 3 . Leg . | . . . Wheel 2 | 2 . . Hover . | . . . Flight . | . . . Utility 3 | 1 2 . Device 1 | . 1 . Storage 2 | 1 1 . Processor . | . . . Hackware . | . . . Protection . | . . . Artifact . | . . . Weapon 5 | 2 1 2 Energy Gun 2 | 2 . . Energy Cannon . | . . . Ballistic Gun 2 | . 1 1 Ballistic Cannon . | . . . Launcher 1 | . . 1 Special Weapon . | . . . Impact Weapon . | . . . Slashing Weapon . | . . . Piercing Weapon . | . . . Special Melee Weapon . | . . . Unidentified Prototypes . | . . . Parts Lost 6 | . 1 5 Power 1 | . 1 . Propulsion 2 | . . 2 Utility 1 | . . 1 Weapon 2 | . . 2 Highest Loss Streak 5 | . 1 5 To Critical Strikes . | . . . Average Slot Usage (%) 85 | . 88 78 Engine 6 | . 8 . Treads 16 | . 13 26 Wheel 10 | . 14 . Device 9 | . 8 12 Storage 13 | . 14 13 Energy Gun 20 | . 23 13 Ballistic Gun 7 | . 4 13 Peak Build Rating 9 | 6 9 8 Average Rating 7 | 4 7 7 On Entrance 4 | . 6 8 Naked Turns 11 | . . 11 Heaviest Build 27 | 11 27 24 Greatest Support 40 | 20 40 40 Greatest Overweight (x) 1 | 1 . . Average Overweight (x) . | . . . Largest Inventory Capacity 15 | 8 15 15 Average Capacity 11 | 6 11 14 Most Carried 5 | 2 5 5 Average Carried 3 | . 3 4 Final Capacity 15 | 8 15 5 Final Carried 5 | 1 5 5 Class Distribution -------------------- 53% | Mutant 46% | Scavenger-Mutant Dominant Class ---------------- Mutant | -10/Materials Scavenger-Mutant | -10/Mines Resources | -11 -10 -10 ----------- Run | Yrd Mat Min Matter Collected 322 | 260 62 . Remotely . | . . . Salvage Created 339 | . 339 . Parts 24 | . 24 . Haulers Intercepted 1 | . 1 . Recyclers Shooed . | . . . Parts Field Recycled . | . . . Retrieved Matter . | . . . Parts Self-Destructed . | . . . Prevented . | . . . Kills | -11 -10 -10 ------- Run | Yrd Mat Min Combat Hostiles Destroyed 8 | . 8 . Guns 8 | . 8 . Classes Destroyed 3 | . 3 . Hauler 1 | . 1 . Swarmer 3 | . 3 . Grunt 5 | . 5 . Best Kill Streak 4 | . 4 . Combat Bots Only 3 | . 3 . Max Kills in Single Turn 1 | . 1 . Gunslinging . | . . . Exploded . | . . . Melee . | . . . Uniques/NPCs Destroyed . | . . . Combat | -11 -10 -10 -------- Run | Yrd Mat Min Hostile Shots Fired 56 | . 42 14 Missed 19 | . 16 3 Damage Taken 718 | . 232 486 Core 251 | . 60 191 Absorbed by Shields . | . . . Core Remaining (%) 100 | 100 . . Volleys Fired 32 | . 32 . Largest 2 | . 2 . Hottest 90 | . 90 . Shots Fired 60 | . 60 . Gun 60 | . 60 . Cannon . | . . . Launcher . | . . . Special . | . . . Kinetic 7 | . 7 . Thermal 53 | . 53 . Explosive . | . . . Electromagnetic . | . . . Robot Hit Streak 8 | . 8 . Robot Miss Streak 3 | . 3 . Penetration Max . | . . . Secondary Targets 2 | . 2 . Max Gunslinging Chain 1 | . 1 . Shots Hit Robots 36 | . 36 . Core Hits 17 | . 17 . Critical Kills . | . . . Critical Parts Destroyed . | . . . Critical Strikes 1 | . 1 . Burn 1 | . 1 . Melee Attacks . | . . . Impact . | . . . Slashing . | . . . Piercing . | . . . Sneak Attacks . | . . . Combat Hostiles . | . . . Follow-up Attacks . | . . . Damage Inflicted 412 | . 412 . Guns 412 | . 412 . Cannons . | . . . Explosions . | . . . Melee . | . . . Ramming . | . . . Kinetic 43 | . 43 . Thermal 369 | . 369 . Explosive . | . . . Electromagnetic . | . . . Impact . | . . . Slashing . | . . . Piercing . | . . . Highest Corruption . | . . . Average Corruption . | . . . Corruption Purged . | . . . Corruption Blocked . | . . . Overload Shots . | . . . Overflow Damage . | . . . Projectiles . | . . . Explosions . | . . . Melee . | . . . Knockbacks . | . . . Impact . | . . . Kinetic . | . . . Secondary . | . . . Self-Inflicted Damage . | . . . Shots . | . . . Rammed . | . . . Targets Rammed . | . . . Kicked . | . . . Crushed . | . . . Highest Temperature 217 | . 217 . Average Temperature 99 | . 99 . Received Heat Transfer 71 | . 51 20 Siege Activations . | . . . Robots Corrupted . | . . . Combat Hostiles . | . . . Parts Fried . | . . . Impact Corruptions . | . . . Robots Melted . | . . . Combat Hostiles . | . . . Parts Melted 2 | . 2 . Heat Transferred 1113 | . 1113 . Parts Sabotaged . | . . . Parts Stolen . | . . . Parts Stripped . | . . . Power Chain Reactions . | . . . Alert | -11 -10 -10 ------- Run | Yrd Mat Min Peak Influence 182 | . 182 70 Initial 70 | . . 70 Average 78 | . 96 66 Maximum Alert Level . | . . . Low Security (%) 100 | 100 100 100 Level 1 . | . . . Level 2 . | . . . Level 3 . | . . . Level 4 . | . . . Level 5 . | . . . High Security . | . . . Max Security . | . . . Squads Dispatched 1 | . 1 . Investigation . | . . . Extermination . | . . . Reinforcement 1 | . 1 . Assault . | . . . Garrison . | . . . Intercept . | . . . Searches Triggered . | . . . Construction Impeded . | . . . Haulers Reinforced . | . . . Active Scanning Responses . | . . . Cargo Convoy Interrupts . | . . . Stealth | -11 -10 -10 --------- Run | Yrd Mat Min Distress Signals 1 | . 1 . Communications Jammed . | . . . Distress Signals . | . . . Times Spotted 17 | . 12 5 Peak Tracking Total 4 | . 4 4 Tactical Retreats . | . . . Traps | -11 -10 -10 ------- Run | Yrd Mat Min Traps Triggered . | . . . Indirectly . | . . . Trap Hack Attempts . | . . . Triggered . | . . . Disarmed . | . . . Reprogrammed . | . . . Reused . | . . . Traps Extracted . | . . . Installed . | . . . Triggered . | . . . Machines | -11 -10 -10 ---------- Run | Yrd Mat Min Machines Disabled . | . . . Max in Single Turn . | . . . Machines Repaired . | . . . Machines Dismantled . | . . . Machines Sabotaged . | . . . Overloaded Fab Kills . | . . . Hacking | -11 -10 -10 --------- Run | Yrd Mat Min Machines Accessed 2 | . 2 . Terminals 2 | . 2 . Fabricators . | . . . Repair Stations . | . . . Recycling Units . | . . . Scanalyzers . | . . . Garrison Access . | . . . Total Hacks 5 | . 5 . Successful 3 | . 3 . Failed 2 | . 2 . Catastrophic 1 | . 1 . Database Lockouts . | . . . Manual 1 | . 1 . Terminals 5 | . 5 . Fabricators . | . . . Repair Stations . | . . . Recycling Units . | . . . Scanalyzers . | . . . Garrison Access . | . . . Terminal Hacks 3 | . 3 . Alert Level 1 | . 1 . Hauler Manifests 1 | . 1 . Zone Layout 1 | . 1 . Fabricator Hacks . | . . . Repair Station Hacks . | . . . Recycling Unit Hacks . | . . . Scanalyzer . | . . . Garrison Access Hacks . | . . . Unauthorized Hacks . | . . . Terminals . | . . . Fabricators . | . . . Repair Stations . | . . . Recycling Units . | . . . Scanalyzers . | . . . Garrison Access . | . . . Data Cores Recovered . | . . . Used . | . . . Hacking Detections 1 | . 1 . Full Trace Events . | . . . Feedback Events . | . . . Feedback Blocked . | . . . Robot Schematics Acquired . | . . . Robots Built . | . . . Authchips . | . . . Time . | . . . Total Robot Build Rating . | . . . Part Schematics Acquired . | . . . Parts Built . | . . . Authchips . | . . . Time . | . . . Total Part Build Rating . | . . . Parts Repaired . | . . . Time . | . . . Parts Recycled . | . . . Recycled Matter . | . . . Retrieved Matter . | . . . Retrieved Components . | . . . Parts Scanalyzed . | . . . Part Schematics Acquired . | . . . Parts Damaged . | . . . Bothacking | -11 -10 -10 ------------ Run | Yrd Mat Min Used RIF Installer . | . . . Robots Hacked . | . . . Non-combat . | . . . Combat . | . . . Robot Hacks Applied . | . . . Relay Couplers Released . | . . . Fabnet Peak Effective % . | . . . Robots Rewired . | . . . Allies Hacked . | . . . Hacks Repelled . | . . . Allies | -11 -10 -10 -------- Run | Yrd Mat Min Total Allies . | . . . Largest Group . | . . . Highest-Rated Group . | . . . Highest-Rated Ally . | . . . Total Orders . | . . . Ally Attacks . | . . . Total Damage . | . . . Kills . | . . . Allies Corrupted . | . . . Allies Melted . | . . . Intel | -11 -10 -10 ------- Run | Yrd Mat Min Robot Analysis Total . | . . . Derelict Logs Recovered 1 | . . 1 Drone Launches . | . . . Drone Recoveries . | . . . Exploration | -11 -10 -10 ------------- Run | Yrd Mat Min Turns Passed 576 | 55 367 154 Spaces Moved 386 | 59 221 106 Core 29 | 10 . 19 Treads 161 | . 74 87 Legs . | . . . Wheels 196 | 49 147 . Hover . | . . . Flight . | . . . Fastest Speed 50 | 50 80 50 Average Speed 111 | 75 106 140 Slowest Speed 160 | 100 160 160 Overloaded Moves . | . . . Propulsion Burnouts . | . . . Robots Hopped . | . . . Cave-ins Triggered . | . . . Exploration Rate (%) 23 | 4 32 34 Regions Visited 2 Branch Regions 1 Pre-discovered Areas . | . . . Known Exits Taken . | . . . Unknown Exits Taken 2 | 1 1 . Scrap Searched . | . . . Spaces Dug . | . . . Terrain Destroyed . | . . . Melee . | . . . Projectile . | . . . AOE . | . . . Terrain Rammed . | . . . Walls Destroyed . | . . . Machines Disabled . | . . . Actions | -11 -10 -10 --------- Run | Yrd Mat Min Total 469 | 67 291 111 Wait 31 | . 31 . Move 384 | 58 220 106 Hop . | . . . Pick Up 6 | 3 2 1 Fast Attach 5 | 4 1 . Attach 2 | 2 . . Detach . | . . . Swap 7 | . 5 2 Drop 2 | . . 2 Fire 32 | . 32 . Melee . | . . . Ram . | . . . Kick . | . . . Crush . | . . . Escape Stasis . | . . . Rewire . | . . . Trap . | . . . Miscellaneous . | . . . Route ------- -11/Scrapyard -10/Materials -10/Mines (discovered 1 exit: [*Mat]) History --------- Turn | Location | Event 10 | -11/Scrapyard | Discovered new exit (range 16) 56 | -11/Scrapyard | Entered Materials 407 | -10/Materials | Discovered new exit (range 11) 423 | -10/Materials | Entered Mines 446 | -10/Mines | Discovered new exit (range 14) 527 | -10/Mines | Assembled infested the area 547 | -10/Mines | Learned Materials security intel 567 | -10/Mines | Core integrity fell below 50% 568 | -10/Mines | Core integrity fell below 20% 577 | -10/Mines | Destroyed by as-03546 with Assembled Rifle Last Messages --------------- 00424_ T-07 Excavator is excavating. 00446_ EXIT=FOUND 00527_ ALERT: Infestation in the mines, dispatching Demolisher response squad. 00547_ Acquired derelict log, extracted data. Data stored: Materials security intel. 00554_ C-30 ARC bursts open, deploying its payload. 00554_ D-53 Grenadier unfolds itself. 00559_ The unstable cave ceiling collapses. 00559_ Imp. Heat Sink destroyed. 00562_ Lgt. Assault Rifle destroyed. 00563_ The unstable cave ceiling collapses. 00564_ Lgt. Treads destroyed. 00564_ Med. Laser destroyed. 00565_ Lgt. Treads destroyed. 00566_ Dropped Lrg. Storage Unit. 00566_ Dropped Sml. Storage Unit. 00567_ The unstable cave ceiling collapses. 00567_ Acquired Lrg. Storage Unit. 00569_ The unstable cave ceiling collapses. Map ----- +----------------------------------------------------+ | ???????# ###??##?????????????? | | ??????## ??? #?????????????? | | ??????# ####? #?????????????? | | ####?## ##? #?????????????? | | # ### #? #?????????????? | | ## ## #?????????????? | | # ###???????????? | | # ????????????? | | #?????????????? | | # #?????????????? | | """ # #?????????????? | | """ ## #?????????????? | | """ #### #?????????????? | | ##??# ! #?????????????? | | ###???## #?????????????? | | #??????# #?????????????? | | ?????### ## #?????????????? | | ###??# #### ## ###???????????? | | #????# % ##??????????? | | #?????#### < #??????????? | | #????????## ### ##?????????? | | #?????????##??## ##????????? | | ? #??????????????# a a ######???? | | ? #??????????????# ##??? | | ? #??????????????## #??? | | ?#????????????????#%! @ #??? | | ??????????????????#!%%! ##??? | | ??????????????????# * #???? | | ??????????????????## #??? | | ???????????????????## #?? | | ????????????????????#### #?? | | ???????????????????????## ##?? | | ????????????????????????# #??? | | ???????????????????????? #??? | | ???????????????????????? a #??? | | ????????????????????????# #??? | | ????????????????????????? ##??? | | ????????????????????????? #???? | | ?????????????????????????# #???? | | ?????????????????????????? #???? | | ??????????????????????????$ ????? | | ????????????????????????????????? | | ????????????????????????????????? | | ????????????????????????????????? | | ????????????????????????????????? | | ????????????????????????????????? | | ????????????????????????????????? | | ????????????????????????????????? | | ????????????????????????????????? | | ????????????????????????????????? | +----------------------------------------------------+ Best States ------------- Heat Dissipation 39 Energy Generation 10 Energy Capacity 125 Matter Stores 300 Matter Capacity 300 Sight Range 16 Terrain Scan Density 10 Evasion (%) 50 Recoil Reduction 2 Item Schematics ----------------- None Robot Schematics ------------------ None Fabricated ------------ Nothing Alien Tech Used ----------------- None Achievements -------------- None Challenges ------------ None Game ------ Seed CargoBehemothExtractor Manual? 0 Play Time 00:08:49 Cumulative 50.8 hours Start 2024.08.13 @ 16:02:05 End 2024.08.13 @ 16:40:56 Sessions 1 Manual Loads 0 Difficulty Rogue Special Mode None Game No. 91 Rogue 91 Adventurer 0 Explorer 0 Win Type - Total 0 Types 0/0/0/0/0/0/0/0/0 Lore% 21 Gallery% 42 Achievement% 34 Wizard Run 0 Options --------- Layout 0 ASCII 0 Keyboard 0 Movement Mouse Keybinds 0 Fullscreen 1 Font 18/SmallcapsGlow Map View 76x50 Zoom Use 0% Tactical HUD 1 Map Filters NONE Filters NONE Steam 1 RUN: 56bf975c-c9d3-4231-bd04-11e8feff7317